lending/lending_fUSD_20260110
["ID","MTS","AMOUNT","RATE_DAILY","PERIOD"]
[401192126,1768033846184,-229.31905987,0.00017073,2]
[401192127,1768033846194,-178.71892515,0.00017073,2]
[401192128,1768033846203,-150.0,0.00017085,2]
[401192129,1768033846212,-255.68743637,0.00017091,2]
[401192130,1768033846222,-189.54348929,0.00017091,2]
[401192131,1768033846231,-263.75602621,0.00017091,2]
[401192132,1768033846242,-216.87423394,0.00017091,2]
[401192133,1768033846253,-229.31905987,0.00017091,2]
[401192134,1768033846263,-178.71892515,0.00017091,2]
[401192135,1768033846273,-433.0,0.00017098,2]
[401192136,1768033846283,-500.0,0.00017098,2]
[401192137,1768033846293,-290.47234924,0.00017099,2]
[401192138,1768033846302,-322.6107,0.00017099,2]
[401192139,1768033846312,-623.58710448,0.00017099,2]
[401192140,1768033846321,-250.0,0.00017099,2]
[401192141,1768033846331,-1000.0,0.00017099,2]
[401192142,1768033846341,-250.0,0.00017099,2]
[401192143,1768033846351,-1000.0,0.00017099,2]
[401192144,1768033846361,-265.93998841,0.00017099,2]
[401192145,1768033846371,-1000.0,0.00017099,2]
[401192146,1768033846380,-151.0,0.00017099,2]
[401192147,1768033846390,-1000.0,0.00017099,2]
[401192148,1768033846400,-1000.0,0.00017099,2]
[401192149,1768033846410,-151.0,0.00017099,2]
[401192150,1768033846419,-1000.0,0.00017099,2]
[401192151,1768033846429,-8260.13072239,0.00017099,2]
[401192152,1768033846438,-151.0,0.00017099,2]
[401192153,1768033846448,-1000.0,0.00017099,2]
[401192154,1768033846457,-157.48868544,0.00017099,2]
[401192155,1768033846467,-1000.0,0.00017099,2]
[401192156,1768033846476,-1000.0,0.00017099,2]
[401192157,1768033846486,-1000.0,0.00017099,2]
[401192158,1768033846495,-998.0,0.00017099,2]
[401192160,1768033846505,-1000.0,0.00017099,2]
[401192161,1768033846515,-1000.0,0.00017099,2]
[401192163,1768033846524,-250.0,0.00017099,2]
[401192164,1768033846534,-1000.0,0.00017099,2]
[401192165,1768033846543,-181.08010149,0.00017099,2]
[401192166,1768033846553,-250.0,0.00017099,2]
[401192167,1768033846563,-250.0,0.00017099,2]
[401192168,1768033846572,-1000.0,0.00017099,2]
[401192170,1768033846583,-250.0,0.00017099,2]
[401192172,1768033846592,-267.33747462,0.00017099,2]
[401192174,1768033846601,-1000.0,0.00017099,2]
[401192175,1768033846611,-250.0,0.00017099,2]
[401192176,1768033846619,-500.0,0.00017099,2]
[401192177,1768033846628,-250.0,0.00017099,2]
[401192178,1768033846638,-500.0,0.00017099,2]
[401192179,1768033846648,-250.0,0.00017099,2]
[401192180,1768033846658,-500.0,0.00017099,2]
[401192181,1768033846669,-250.0,0.00017099,2]
[401192182,1768033846680,-500.0,0.00017099,2]
[401192183,1768033846690,-250.0,0.00017099,2]
[401192184,1768033846700,-500.0,0.00017099,2]
[401192185,1768033846710,-250.0,0.00017099,2]
[401192186,1768033846720,-500.0,0.00017099,2]
[401192187,1768033846729,-250.0,0.00017099,2]
[401192188,1768033846739,-500.0,0.00017099,2]
[401192189,1768033846751,-250.0,0.00017099,2]
[401192190,1768033846761,-500.0,0.00017099,2]
[401192191,1768033846770,-250.0,0.00017099,2]
[401192192,1768033846780,-496.47127164,0.00017099,2]
[401192193,1768033846789,-250.0,0.00017099,2]
[401192194,1768033846799,-500.0,0.00017099,2]
[401192195,1768033846808,-724.98153853,0.00017099,2]
[401192196,1768033846818,-250.0,0.00017099,2]
[401192197,1768033846827,-250.0,0.00017099,2]
[401192198,1768033846837,-2000.0,0.00017099,2]
[401192199,1768033846847,-500.0,0.00017099,2]
[401192200,1768033846856,-250.0,0.00017099,2]
[401192201,1768033846865,-2000.0,0.00017099,2]
[401192202,1768033846875,-500.0,0.00017099,2]
[401192203,1768033846885,-262.0209475,0.00017099,2]
[401192204,1768033846894,-250.0,0.00017099,2]
[401192205,1768033846903,-250.0,0.00017099,2]
[401192206,1768033846913,-2000.0,0.00017099,2]
[401192207,1768033846924,-500.0,0.00017099,2]
[401192208,1768033846933,-250.0,0.00017099,2]
[401192209,1768033846943,-250.0,0.00017099,2]
[401192210,1768033846953,-500.0,0.00017099,2]
[401192211,1768033846962,-2000.0,0.00017099,2]
[401192212,1768033846971,-500.0,0.00017099,2]
[401192213,1768033846980,-262.27490419,0.00017099,2]
[401192214,1768033846990,-2000.0,0.00017099,2]
[401192215,1768033846999,-500.0,0.00017099,2]
[401192216,1768033847008,-2000.0,0.00017099,2]
[401192217,1768033847018,-2000.0,0.00017099,2]
[401192218,1768033847028,-500.0,0.00017099,2]
[401192219,1768033847038,-2000.0,0.00017099,2]
[401192220,1768033847048,-2000.0,0.00017099,2]
[401192221,1768033847057,-500.0,0.00017099,2]
[401192222,1768033847067,-2000.0,0.00017099,2]
[401192223,1768033847078,-500.0,0.00017099,2]
[401192224,1768033847088,-2000.0,0.00017099,2]
[401192225,1768033847097,-500.0,0.00017099,2]
[401192226,1768033847106,-525.94323817,0.00017099,2]
[401192227,1768033847116,-500.0,0.00017099,2]
[401192228,1768033847126,-181.08010149,0.00017099,2]
[401192229,1768033847137,-500.0,0.00017099,2]
[401192230,1768033847147,-500.0,0.00017099,2]
[401192231,1768033847157,-500.0,0.00017099,2]
[401192232,1768033847166,-500.0,0.00017099,2]
[401192233,1768033847176,-151.0,0.00017099,2]
[401192234,1768033847185,-500.0,0.00017099,2]
[401192235,1768033847194,-500.0,0.00017099,2]
[401192236,1768033847204,-500.0,0.00017099,2]
[401192237,1768033847213,-500.0,0.00017099,2]
[401192238,1768033847223,-500.0,0.00017099,2]
[401192239,1768033847233,-500.0,0.00017099,2]
[401192240,1768033847243,-250.0,0.00017099,2]
[401192241,1768033847253,-250.0,0.00017099,2]
[401192242,1768033847263,-268.55828979,0.00017099,2]
[401192243,1768033847273,-187.78006525,0.00017099,2]
[401192244,1768033847282,-150.0,0.000171,2]
[401192245,1768033847292,-150.0,0.000171,2]
[401192246,1768033847302,-150.0,0.000171,2]
[401192247,1768033847313,-150.0,0.000171,2]
[401192248,1768033847323,-1069.8949683,0.000171,2]
[401192249,1768033847333,-255.68743637,0.00017109,2]
[401192250,1768033847342,-189.54348929,0.00017109,2]
[401192251,1768033847352,-263.75602621,0.00017109,2]
[401192252,1768033847362,-216.87423394,0.00017109,2]
[401192253,1768033847373,-229.31905987,0.00017109,2]
[401192254,1768033847383,-178.71892515,0.00017109,2]
[401192255,1768033847392,-1000.0,0.00017112,2]
[401192256,1768033847402,-150.0,0.00017115,2]
[401192257,1768033847411,-433.0,0.0001712,2]
[401192258,1768033847420,-255.68743637,0.00017127,2]
[401192259,1768033847430,-189.54348929,0.00017127,2]
[401192260,1768033847440,-263.75602621,0.00017127,2]
[401192261,1768033847449,-216.87423394,0.00017127,2]
[401192262,1768033847459,-229.31905987,0.00017127,2]
[401192263,1768033847470,-178.71892515,0.00017127,2]
[401192264,1768033847481,-150.0,0.00017133,2]
[401192265,1768033847491,-150.0,0.00017135,2]
[401192266,1768033847503,-150.0,0.00017141,2]
[401192267,1768033847514,-150.0,0.00017144,2]
[401192268,1768033847525,-255.68743637,0.00017145,2]
[401192269,1768033847535,-189.54348929,0.00017145,2]
[401192270,1768033847545,-263.75602621,0.00017145,2]
[401192271,1768033847555,-216.87423394,0.00017145,2]
[401192272,1768033847565,-229.31905987,0.00017145,2]
[401192273,1768033847575,-178.71892515,0.00017145,2]
[401192274,1768033847585,-8565.75555911,0.00017154,2]
[401192275,1768033847594,-255.68743637,0.00017164,2]
[401192276,1768033847604,-189.54348929,0.00017164,2]
[401192277,1768033847614,-263.75602621,0.00017164,2]
[401192278,1768033847624,-216.87423394,0.00017164,2]
[401192279,1768033847633,-229.31905987,0.00017164,2]
[401192280,1768033847643,-178.71892515,0.00017164,2]
[401192281,1768033847653,-150.0,0.00017169,2]
[401192282,1768033847663,-150.0,0.00017174,2]
[401192283,1768033847676,-561.2,0.00017179,2]
[401192284,1768033847686,-255.68743637,0.00017182,2]
[401192285,1768033847696,-189.54348929,0.00017182,2]
[401192286,1768033847706,-263.75602621,0.00017182,2]
[401192287,1768033847717,-216.87423394,0.00017182,2]
[401192288,1768033847726,-150.0,0.00017182,2]
[401192289,1768033847736,-229.31905987,0.00017182,2]
[401192290,1768033847746,-178.71892515,0.00017182,2]
[401192291,1768033847756,-255.68743637,0.000172,2]
[401192292,1768033847770,-189.54348929,0.000172,2]
[401192293,1768033847780,-263.75602621,0.000172,2]
[401192294,1768033847790,-216.87423394,0.000172,2]
[401192295,1768033847800,-150.0,0.000172,2]
[401192296,1768033847810,-150.0,0.000172,2]
[401192297,1768033847820,-229.31905987,0.000172,2]
[401192298,1768033847830,-150.0,0.000172,2]
[401192299,1768033847839,-178.71892515,0.000172,2]
[401192300,1768033847972,-150.0,0.00017203,2]
[401192301,1768033847982,-150.0,0.00017204,2]
[401192302,1768033847991,-8882.6885148,0.00017209,2]
[401192303,1768033848000,-150.0,0.00017212,2]
[401192304,1768033848009,-255.68743637,0.00017218,2]
[401192305,1768033848019,-189.54348929,0.00017218,2]
[401192306,1768033848029,-263.75602621,0.00017218,2]
[401192307,1768033848039,-216.87423394,0.00017218,2]
[401192308,1768033848048,-229.31905987,0.00017218,2]
[401192309,1768033848058,-178.71892515,0.00017218,2]
[401192310,1768033848068,-150.0,0.00017223,2]
[401192311,1768033848078,-420.0,0.00017223,2]
[401192312,1768033848087,-2687.76229548,0.00017225,2]
[401192313,1768033848098,-4460.51539019,0.00017225,2]
[401192314,1768033848107,-170.32473985,0.00017233,2]
[401192315,1768033848118,-150.0,0.00017233,2]
[401192316,1768033848127,-255.68743637,0.00017236,2]
[401192317,1768033848137,-189.54348929,0.00017236,2]
[401192318,1768033848147,-263.75602621,0.00017236,2]
[401192319,1768033848156,-216.87423394,0.00017236,2]
[401192320,1768033848166,-229.31905987,0.00017236,2]
[401192321,1768033848176,-178.71892515,0.00017236,2]
[401192322,1768033848191,-150.0,0.00017238,2]
[401192323,1768033848201,-561.2,0.00017254,2]
[401192324,1768033848211,-255.68743637,0.00017255,2]
[401192325,1768033848221,-189.54348929,0.00017255,2]
[401192326,1768033848235,-263.75602621,0.00017255,2]
[401192327,1768033848246,-216.87423394,0.00017255,2]
[401192328,1768033848256,-229.31905987,0.00017255,2]
[401192329,1768033848266,-178.71892515,0.00017255,2]
[401192330,1768033848277,-150.0,0.00017262,2]
[401192331,1768033848287,-150.0,0.00017264,2]
[401192332,1768033848297,-805.55508344,0.00017264,2]
[401192333,1768033848306,-150.0,0.00017267,2]
[401192334,1768033848316,-255.68743637,0.00017273,2]
[401192335,1768033848327,-189.54348929,0.00017273,2]
[401192336,1768033848337,-263.75602621,0.00017273,2]
[401192337,1768033848347,-216.87423394,0.00017273,2]
[401192338,1768033848357,-229.31905987,0.00017273,2]
[401192339,1768033848367,-178.71892515,0.00017273,2]
[401192340,1768033848376,-150.0,0.00017273,2]
[401192341,1768033848386,-150.0,0.0001728,2]
[401192342,1768033848395,-158.12267731,0.00017283,2]
[401192343,1768033848405,-159.16121496,0.00017289,2]
[401192344,1768033848414,-255.68743637,0.00017291,2]
[401192345,1768033848424,-189.54348929,0.00017291,2]
[401192346,1768033848434,-263.75602621,0.00017291,2]
[401192347,1768033848443,-216.87423394,0.00017291,2]
[401192348,1768033848452,-229.31905987,0.00017291,2]
[401192349,1768033848462,-178.71892515,0.00017291,2]
[401192350,1768033848471,-150.0,0.00017292,2]
[401192351,1768033848481,-150.0,0.00017305,2]
[401192352,1768033848491,-150.0,0.00017308,2]
[401192353,1768033848501,-255.68743637,0.00017309,2]
[401192354,1768033848512,-189.54348929,0.00017309,2]
[401192355,1768033848522,-263.75602621,0.00017309,2]
[401192356,1768033848531,-216.87423394,0.00017309,2]
[401192357,1768033848540,-229.31905987,0.00017309,2]
[401192358,1768033848551,-178.71892515,0.00017309,2]
[401192359,1768033848565,-1680.0,0.0001731,2]
[401192360,1768033848575,-500.0,0.00017315,2]
[401192361,1768033848585,-150.0,0.00017321,2]
[401192362,1768033848595,-150.0,0.00017325,2]
[401192363,1768033848605,-255.68743637,0.00017327,2]
[401192364,1768033848615,-189.54348929,0.00017327,2]
[401192365,1768033848625,-263.75602621,0.00017327,2]
[401192366,1768033848635,-216.87423394,0.00017327,2]
[401192367,1768033848645,-229.31905987,0.00017327,2]
[401192368,1768033848655,-178.71892515,0.00017327,2]
[401192369,1768033848665,-561.2,0.00017328,2]
[401192370,1768033848679,-150.0,0.00017333,2]
[401192371,1768033848689,-150.0,0.00017342,2]
[401192372,1768033848698,-255.68743637,0.00017345,2]
[401192373,1768033848708,-189.54348929,0.00017345,2]
[401192374,1768033848718,-263.75602621,0.00017345,2]
[401192375,1768033848727,-216.87423394,0.00017345,2]
[401192376,1768033848737,-150.0,0.00017345,2]
[401192377,1768033848746,-229.31905987,0.00017345,2]
[401192378,1768033848756,-178.71892515,0.00017345,2]
[401192379,1768033848766,-150.0,0.00017351,2]
[401192380,1768033848776,-255.68743637,0.00017364,2]
[401192381,1768033848786,-189.54348929,0.00017364,2]
[401192382,1768033848795,-263.75602621,0.00017364,2]
[401192383,1768033848804,-216.87423394,0.00017364,2]
[401192384,1768033848814,-229.31905987,0.00017364,2]
[401192385,1768033848824,-178.71892515,0.00017364,2]
[401192386,1768033848833,-150.0,0.00017377,2]
[401192387,1768033848843,-150.0,0.0001738,2]
[401192388,1768033848853,-255.68743637,0.00017382,2]
[401192389,1768033848862,-189.54348929,0.00017382,2]
[401192390,1768033848872,-263.75602621,0.00017382,2]
[401192391,1768033848882,-216.87423394,0.00017382,2]
[401192392,1768033848891,-229.31905987,0.00017382,2]
[401192393,1768033848901,-178.71892515,0.00017382,2]
[401192394,1768033848911,-150.0,0.00017386,2]
[401192395,1768033848921,-255.68743637,0.000174,2]
[401192396,1768033848935,-189.54348929,0.000174,2]
[401192397,1768033848945,-263.75602621,0.000174,2]
[401192398,1768033848955,-150.0,0.000174,2]
[401192399,1768033848966,-216.87423394,0.000174,2]
[401192400,1768033848975,-150.0,0.000174,2]
[401192401,1768033848985,-150.0,0.000174,2]
[401192402,1768033848994,-229.31905987,0.000174,2]
[401192403,1768033849004,-150.0,0.000174,2]
[401192404,1768033849013,-150.0,0.000174,2]
[401192405,1768033849022,-178.71892515,0.000174,2]
[401192406,1768033849031,-336.38037809,0.000174,2]
[401192407,1768033849040,-561.2,0.00017403,2]
[401192408,1768033849050,-150.0,0.0001741,2]
[401192409,1768033849059,-150.0,0.00017412,2]
[401192410,1768033849071,-255.68743637,0.00017418,2]
[401192411,1768033849081,-189.54348929,0.00017418,2]
[401192412,1768033849091,-263.75602621,0.00017418,2]
[401192413,1768033849101,-216.87423394,0.00017418,2]
[401192414,1768033849110,-229.31905987,0.00017418,2]
[401192415,1768033849119,-178.71892515,0.00017418,2]
[401192416,1768033849132,-150.0,0.00017427,2]
[401192417,1768033849142,-255.68743637,0.00017436,2]
[401192418,1768033849152,-189.54348929,0.00017436,2]
[401192419,1768033849162,-263.75602621,0.00017436,2]
[401192420,1768033849172,-216.87423394,0.00017436,2]
[401192421,1768033849182,-229.31905987,0.00017436,2]
[401192422,1768033849192,-178.71892515,0.00017436,2]
[401192423,1768033849202,-150.0,0.00017437,2]
[401192424,1768033849212,-150.0,0.00017439,2]
[401192425,1768033849222,-150.0,0.00017446,2]
[401192426,1768033849232,-2687.76229548,0.0001745,2]
[401192427,1768033849242,-4460.51539019,0.0001745,2]
[401192428,1768033849253,-255.68743637,0.00017455,2]
[401192429,1768033849263,-189.54348929,0.00017455,2]
[401192430,1768033849273,-263.75602621,0.00017455,2]
[401192431,1768033849284,-216.87423394,0.00017455,2]
[401192432,1768033849294,-229.31905987,0.00017455,2]
[401192433,1768033849304,-178.71892515,0.00017455,2]
[401192434,1768033849314,-150.0,0.00017467,2]
[401192435,1768033849323,-150.0,0.00017468,2]
[401192436,1768033849334,-150.0,0.00017469,2]
[401192437,1768033849347,-255.68743637,0.00017473,2]
[401192438,1768033849357,-189.54348929,0.00017473,2]
[401192439,1768033849367,-263.75602621,0.00017473,2]
[401192440,1768033849377,-216.87423394,0.00017473,2]
[401192441,1768033849387,-229.31905987,0.00017473,2]
[401192442,1768033849397,-178.71892515,0.00017473,2]
[401192443,1768033849406,-561.2,0.00017478,2]
[401192444,1768033849416,-150.0,0.00017481,2]
[401192445,1768033849427,-1000.0,0.0001749,2]
[401192446,1768033849437,-255.68743637,0.00017491,2]
[401192447,1768033849447,-189.54348929,0.00017491,2]
[401192448,1768033849457,-263.75602621,0.00017491,2]
[401192449,1768033849467,-216.87423394,0.00017491,2]
[401192450,1768033849476,-229.31905987,0.00017491,2]
[401192451,1768033849486,-178.71892515,0.00017491,2]
[401192452,1768033849496,-150.0,0.00017498,2]
[401192453,1768033849505,-2000.0,0.000175,2]
[401192454,1768033849515,-255.68743637,0.00017509,2]
[401192455,1768033849525,-189.54348929,0.00017509,2]
[401192456,1768033849534,-263.75602621,0.00017509,2]
[401192457,1768033849544,-216.87423394,0.00017509,2]
[401192458,1768033849554,-150.0,0.00017509,2]
[401192459,1768033849564,-229.31905987,0.00017509,2]
[401192460,1768033849574,-178.71892515,0.00017509,2]
[401192461,1768033849583,-150.0,0.00017515,2]
[401192462,1768033849593,-1000.0,0.00017518,2]
[401192463,1768033849604,-255.68743637,0.00017527,2]
[401192464,1768033849614,-189.54348929,0.00017527,2]
[401192465,1768033849624,-263.75602621,0.00017527,2]
[401192466,1768033849635,-216.87423394,0.00017527,2]
[401192467,1768033849644,-229.31905987,0.00017527,2]
[401192468,1768033849654,-178.71892515,0.00017527,2]
[401192469,1768033849664,-150.0,0.00017528,2]
[401192470,1768033849676,-150.0,0.00017533,2]
[401192471,1768033849686,-600.0,0.00017534,2]
[401192472,1768033849696,-255.68743637,0.00017545,2]
[401192473,1768033849706,-189.54348929,0.00017545,2]
[401192474,1768033849716,-263.75602621,0.00017545,2]
[401192475,1768033849726,-216.87423394,0.00017545,2]
[401192476,1768033849747,-229.31905987,0.00017545,2]
[401192477,1768033849756,-178.71892515,0.00017545,2]
[401192478,1768033849766,-150.0,0.0001755,2]
[401192479,1768033849777,-150.0,0.0001755,2]
[401192480,1768033849787,-150.0,0.0001755,2]
[401192481,1768033849796,-561.2,0.00017552,2]
[401192482,1768033849806,-150.0,0.00017557,2]
[401192483,1768033849815,-255.68743637,0.00017564,2]
[401192484,1768033849826,-189.54348929,0.00017564,2]
[401192485,1768033849835,-263.75602621,0.00017564,2]
[401192486,1768033849845,-216.87423394,0.00017564,2]
[401192487,1768033849855,-229.31905987,0.00017564,2]
[401192488,1768033849865,-178.71892515,0.00017564,2]
[401192489,1768033849875,-170.32473985,0.00017566,2]
[401192490,1768033849884,-429.31,0.00017573,2]
[401192491,1768033849895,-455.0,0.00017573,2]
[401192492,1768033849905,-255.68743637,0.00017582,2]
[401192493,1768033849914,-189.54348929,0.00017582,2]
[401192494,1768033849923,-263.75602621,0.00017582,2]
[401192495,1768033849933,-216.87423394,0.00017582,2]
[401192496,1768033849943,-229.31905987,0.00017582,2]
[401192497,1768033849953,-178.71892515,0.00017582,2]
[401192498,1768033849962,-150.0,0.00017585,2]
[401192499,1768033849972,-1000.0,0.00017586,2]
[401192500,1768033849981,-150.0,0.00017587,2]
[401192501,1768033849992,-166.66,0.00017589,2]
[401192502,1768033850002,-150.0,0.00017591,2]
[401192503,1768033850012,-158.12267731,0.00017592,2]
[401192504,1768033850022,-255.68743637,0.000176,2]
[401192505,1768033850033,-189.54348929,0.000176,2]
[401192506,1768033850043,-263.75602621,0.000176,2]
[401192507,1768033850053,-216.87423394,0.000176,2]
[401192508,1768033850063,-150.0,0.000176,2]
[401192509,1768033850073,-150.0,0.000176,2]
[401192510,1768033850082,-229.31905987,0.000176,2]
[401192511,1768033850092,-150.0,0.000176,2]
[401192512,1768033850102,-178.71892515,0.000176,2]
[401192513,1768033850112,-150.0,0.00017616,2]
[401192514,1768033850123,-255.68743637,0.00017618,2]
[401192515,1768033850133,-189.54348929,0.00017618,2]
[401192516,1768033850143,-263.75602621,0.00017618,2]
[401192517,1768033850153,-216.87423394,0.00017618,2]
[401192518,1768033850163,-229.31905987,0.00017618,2]
[401192519,1768033850174,-178.71892515,0.00017618,2]
[401192520,1768033850183,-150.0,0.00017619,2]
[401192521,1768033850193,-1000.0,0.00017623,2]
[401192522,1768033850203,-561.2,0.00017627,2]
[401192523,1768033850215,-150.0,0.00017632,2]
[401192524,1768033850224,-14189.9900846,0.00017636,2]
[401192525,1768033850235,-255.68743637,0.00017636,2]
[401192526,1768033850245,-189.54348929,0.00017636,2]
[401192527,1768033850255,-263.75602621,0.00017636,2]
[401192528,1768033850265,-216.87423394,0.00017636,2]
[401192529,1768033850276,-229.31905987,0.00017636,2]
[401192530,1768033850291,-178.71892515,0.00017636,2]
[401192531,1768033850301,-150.0,0.0001764,2]
[401192532,1768033850311,-10537.80982193,0.0001764,2]
[401192533,1768033850322,-150.0,0.00017646,2]
[401192534,1768033850332,-187.78006525,0.00017647,2]
[401192535,1768033850342,-514.84070869,0.00017647,2]
[401192536,1768033850353,-197.9969081,0.00017647,2]
[401192537,1768033850363,-151.0,0.00017647,2]
[401192538,1768033850372,-150.0,0.00017654,2]
[401192539,1768033850383,-255.68743637,0.00017655,2]
[401192540,1768033850392,-189.54348929,0.00017655,2]
[401192541,1768033850402,-263.75602621,0.00017655,2]
[401192542,1768033850413,-216.87423394,0.00017655,2]
[401192543,1768033850422,-229.31905987,0.00017655,2]
[401192544,1768033850432,-178.71892515,0.00017655,2]
[401192545,1768033850442,-659.3281205,0.00017661,2]
[401192546,1768033850452,-433.0,0.00017662,2]
[401192547,1768033850462,-150.0,0.00017662,2]
[401192548,1768033850472,-150.0,0.00017667,2]
[401192549,1768033850482,-1000.0,0.0001767,2]
[401192550,1768033850493,-255.68743637,0.00017673,2]
[401192551,1768033850503,-189.54348929,0.00017673,2]
[401192552,1768033850514,-263.75602621,0.00017673,2]
[401192553,1768033850524,-216.87423394,0.00017673,2]
[401192554,1768033850534,-150.0,0.00017673,2]
[401192555,1768033850544,-229.31905987,0.00017673,2]
[401192556,1768033850555,-178.71892515,0.00017673,2]
[401192557,1768033850565,-2687.76229548,0.00017675,2]
[401192558,1768033850575,-4460.51539019,0.00017675,2]
[401192559,1768033850585,-150.0,0.00017675,2]
[401192560,1768033850595,-150.0,0.00017688,2]
[401192561,1768033850606,-255.68743637,0.00017691,2]
[401192562,1768033850615,-189.54348929,0.00017691,2]
[401192563,1768033850625,-263.75602621,0.00017691,2]
[401192564,1768033850635,-216.87423394,0.00017691,2]
[401192565,1768033850644,-229.31905987,0.00017691,2]
[401192566,1768033850654,-178.71892515,0.00017691,2]
[401192567,1768033850664,-150.0,0.000177,2]
[401192568,1768033850676,-4304.92943194,0.000177,2]
[401192569,1768033850687,-1000.0,0.000177,2]
[401192570,1768033850698,-561.2,0.00017701,2]
[401192571,1768033850709,-150.0,0.00017705,2]
[401192572,1768033850719,-1000.0,0.00017709,2]
[401192573,1768033850730,-255.68743637,0.00017709,2]
[401192574,1768033850741,-189.54348929,0.00017709,2]
[401192575,1768033850752,-263.75602621,0.00017709,2]
[401192576,1768033850763,-216.87423394,0.00017709,2]
[401192577,1768033850773,-229.31905987,0.00017709,2]
[401192578,1768033850784,-178.71892515,0.00017709,2]
[401192579,1768033850794,-150.0,0.00017714,2]
[401192580,1768033850804,-150.0,0.00017723,2]
[401192581,1768033850816,-255.68743637,0.00017727,2]
[401192582,1768033850826,-189.54348929,0.00017727,2]
[401192583,1768033850839,-263.75602621,0.00017727,2]
[401192584,1768033850849,-216.87423394,0.00017727,2]
[401192585,1768033850860,-229.31905987,0.00017727,2]
[401192586,1768033850871,-178.71892515,0.00017727,2]
[401192587,1768033850882,-7554.21886386,0.0001773,2]
[401192588,1768033850892,-150.0,0.00017733,2]
[401192589,1768033850902,-150.0,0.00017734,2]
[401192590,1768033850912,-455.0,0.00017743,2]
[401192591,1768033850923,-255.68743637,0.00017745,2]
[401192592,1768033850934,-189.54348929,0.00017745,2]
[401192593,1768033850944,-263.75602621,0.00017745,2]
[401192594,1768033850954,-216.87423394,0.00017745,2]
[401192595,1768033850965,-229.31905987,0.00017745,2]
[401192596,1768033850975,-178.71892515,0.00017745,2]
[401192597,1768033850985,-1514.73825484,0.00017751,2]
[401192598,1768033850996,-2464.03631718,0.00017751,2]
[401192599,1768033851007,-3479.95468316,0.00017751,2]
[401192600,1768033851018,-4502.9853,0.00017751,2]
[401192601,1768033851028,-150.0,0.00017755,2]
[401192602,1768033851039,-150.0,0.00017758,2]
[401192603,1768033851049,-255.68743637,0.00017764,2]
[401192604,1768033851060,-189.54348929,0.00017764,2]
[401192605,1768033851071,-263.75602621,0.00017764,2]
[401192606,1768033851082,-216.87423394,0.00017764,2]
[401192607,1768033851093,-229.31905987,0.00017764,2]
[401192608,1768033851103,-178.71892515,0.00017764,2]
[401192609,1768033851114,-150.0,0.00017764,2]
[401192610,1768033851125,-150.0,0.00017775,2]
[401192611,1768033851136,-561.2,0.00017776,2]
[401192612,1768033851146,-255.68743637,0.00017782,2]
[401192613,1768033851157,-189.54348929,0.00017782,2]
[401192614,1768033851168,-263.75602621,0.00017782,2]
[401192615,1768033851178,-216.87423394,0.00017782,2]
[401192616,1768033851189,-229.31905987,0.00017782,2]
[401192617,1768033851199,-178.71892515,0.00017782,2]
[401192618,1768033851210,-1000.0,0.00017783,2]
[401192619,1768033851220,-150.0,0.00017792,2]
[401192620,1768033851231,-150.0,0.00017793,2]
[401192621,1768033851242,-150.0,0.00017795,2]
[401192622,1768033851253,-21661.999998,0.000178,2]
[401192623,1768033851263,-255.68743637,0.000178,2]
[401192624,1768033851274,-189.54348929,0.000178,2]
[401192625,1768033851284,-263.75602621,0.000178,2]
[401192626,1768033851295,-216.87423394,0.000178,2]
[401192627,1768033851305,-150.0,0.000178,2]
[401192628,1768033851315,-150.0,0.000178,2]
[401192629,1768033851326,-229.31905987,0.000178,2]
[401192630,1768033851337,-150.0,0.000178,2]